{"text_format":"3","workbook":"xlsx","n_sheets":1,"sheets":["Ročný časový výkaz"],"not_rendered":{"defined_names":2},"read":"whole","date_system":"1900"}

{"sheet":"Ročný časový výkaz","index":0,"n_rows":140,"n_cols":12,"rows_kept":140,"merged":[[0,1,1,11],[2,6,2,7],[2,8,2,9],[5,1,5,11],[15,3,15,4],[26,3,26,4],[37,3,37,4],[39,1,39,11],[49,3,49,4],[60,3,60,4],[71,3,71,4],[73,1,73,11],[83,3,83,4],[94,3,94,4],[105,3,105,4],[107,1,107,11],[117,3,117,4],[128,3,128,4],[139,3,139,4]]}
[null,"Časový výkaz zamestnanca"]
[]
[null,"Meno zamestnanca:",null,"E-mail:",null,null,"Súčet od začiatku roka:"]
[null,"Nadriadený:",null,"Telefón:",null,null,"Počet hodín normálneho pracovného času:",{"$f":"SUM(C16,C27,C38,C50,C61,C72,C84,C95,C106,C118,C129,C140)","v":0},"Počet hodín práce nadčas:",{"$f":"SUM(F16,F27,F38,F50,F61,F72,F84,F95,F106,F118,F129,F140)","v":0},"Spolu:",{"$f":"SUM(H4,J4)","v":0}]
[]
[null,"Január, február, marec      Časový výkaz zamestnanca: denný, týždenný, mesačný, ročný"]
[null,"Január","Týždeň 1","Nadčasy","Týždeň 2","Nadčasy ","Týždeň 3","Nadčasy  ","Týždeň 4","Nadčasy   ","Týždeň 5","Nadčasy    "]
[null,"Pondelok"]
[null,"Utorok"]
[null,"Streda"]
[null,"Štvrtok"]
[null,"Piatok"]
[null,"Sobota"]
[null,"Nedeľa"]
[null,"Celkový počet hodín za týždeň",{"$f":"SUBTOTAL(109,Január[Týždeň 1])","v":0},{"$f":"SUBTOTAL(109,Január[Nadčasy])","v":0},{"$f":"SUBTOTAL(109,Január[Týždeň 2])","v":0},{"$f":"SUBTOTAL(109,Január[[Nadčasy ]])","v":0},{"$f":"SUBTOTAL(109,Január[Týždeň 3])","v":0},{"$f":"SUBTOTAL(109,Január[[Nadčasy  ]])","v":0},{"$f":"SUBTOTAL(109,Január[Týždeň 4])","v":0},{"$f":"SUBTOTAL(109,Január[[Nadčasy   ]])","v":0},{"$f":"SUBTOTAL(109,Január[Týždeň 5])","v":0},{"$f":"SUBTOTAL(109,Január[[Nadčasy    ]])","v":0}]
[null,"Jan. spolu: normálny pracovný čas",{"$f":"SUM(Január[[#Totals],[Týždeň 1]],Január[[#Totals],[Týždeň 2]],Január[[#Totals],[Týždeň 3]],Január[[#Totals],[Týždeň 4]],Január[[#Totals],[Týždeň 5]])","v":0},"Jan. spolu: Nadčasy",null,{"$f":"SUM(Január[[#Totals],[Nadčasy]],Január[[#Totals],[Nadčasy ]],Január[[#Totals],[Nadčasy  ]],Január[[#Totals],[Nadčasy   ]],Január[[#Totals],[Nadčasy    ]])","v":0}]
[]
[null,"Február","Týždeň 1","Nadčasy","Týždeň 2","Nadčasy ","Týždeň 3","Nadčasy  ","Týždeň 4","Nadčasy   ","Týždeň 5","Nadčasy    "]
[null,"Pondelok"]
[null,"Utorok"]
[null,"Streda"]
[null,"Štvrtok"]
[null,"Piatok"]
[null,"Sobota"]
[null,"Nedeľa"]
[null,"Celkový počet hodín za týždeň",{"$f":"SUBTOTAL(109,Február[Týždeň 1])","v":0},{"$f":"SUBTOTAL(109,Február[Nadčasy])","v":0},{"$f":"SUBTOTAL(109,Február[Týždeň 2])","v":0},{"$f":"SUBTOTAL(109,Február[[Nadčasy ]])","v":0},{"$f":"SUBTOTAL(109,Február[Týždeň 3])","v":0},{"$f":"SUBTOTAL(109,Február[[Nadčasy  ]])","v":0},{"$f":"SUBTOTAL(109,Február[Týždeň 4])","v":0},{"$f":"SUBTOTAL(109,Február[[Nadčasy   ]])","v":0},{"$f":"SUBTOTAL(109,Február[Týždeň 5])","v":0},{"$f":"SUBTOTAL(109,Február[[Nadčasy    ]])","v":0}]
[null,"Feb. spolu: normálny pracovný čas",{"$f":"SUM(Február[[#Totals],[Týždeň 1]],Február[[#Totals],[Týždeň 2]],Február[[#Totals],[Týždeň 3]],Február[[#Totals],[Týždeň 4]],Február[[#Totals],[Týždeň 5]])","v":0},"Feb. spolu: Nadčasy",null,{"$f":"SUM(Február[[#Totals],[Nadčasy]],Február[[#Totals],[Nadčasy ]],Február[[#Totals],[Nadčasy  ]],Február[[#Totals],[Nadčasy   ]],Február[[#Totals],[Nadčasy    ]])","v":0}]
[]
[null,"Marec","Týždeň 1","Nadčasy","Týždeň 2","Nadčasy ","Týždeň 3","Nadčasy  ","Týždeň 4","Nadčasy   ","Týždeň 5","Nadčasy    "]
[null,"Pondelok"]
[null,"Utorok"]
[null,"Streda"]
[null,"Štvrtok"]
[null,"Piatok"]
[null,"Sobota"]
[null,"Nedeľa"]
[null,"Celkový počet hodín za týždeň",{"$f":"SUBTOTAL(109,Marec[Týždeň 1])","v":0},{"$f":"SUBTOTAL(109,Marec[Nadčasy])","v":0},{"$f":"SUBTOTAL(109,Marec[Týždeň 2])","v":0},{"$f":"SUBTOTAL(109,Marec[[Nadčasy ]])","v":0},{"$f":"SUBTOTAL(109,Marec[Týždeň 3])","v":0},{"$f":"SUBTOTAL(109,Marec[[Nadčasy  ]])","v":0},{"$f":"SUBTOTAL(109,Marec[Týždeň 4])","v":0},{"$f":"SUBTOTAL(109,Marec[[Nadčasy   ]])","v":0},{"$f":"SUBTOTAL(109,Marec[Týždeň 5])","v":0},{"$f":"SUBTOTAL(109,Marec[[Nadčasy    ]])","v":0}]
[null,"Mar. spolu: normálny pracovný čas",{"$f":"SUM(Marec[[#Totals],[Týždeň 1]],Marec[[#Totals],[Týždeň 2]],Marec[[#Totals],[Týždeň 3]],Marec[[#Totals],[Týždeň 4]],Marec[[#Totals],[Týždeň 5]])","v":0},"Mar. spolu: Nadčasy",null,{"$f":"SUM(Marec[[#Totals],[Nadčasy]],Marec[[#Totals],[Nadčasy ]],Marec[[#Totals],[Nadčasy  ]],Marec[[#Totals],[Nadčasy   ]],Marec[[#Totals],[Nadčasy    ]])","v":0}]
[]
[null,"Apríl, máj, jún      Časový výkaz zamestnanca: denný, týždenný, mesačný, ročný"]
[null,"Apríl","Týždeň 1","Nadčasy","Týždeň 2","Nadčasy ","Týždeň 3","Nadčasy  ","Týždeň 4","Nadčasy   ","Týždeň 5","Nadčasy    "]
[null,"Pondelok"]
[null,"Utorok"]
[null,"Streda"]
[null,"Štvrtok"]
[null,"Piatok"]
[null,"Sobota"]
[null,"Nedeľa"]
[null,"Celkový počet hodín za týždeň",{"$f":"SUBTOTAL(109,Apríl[Týždeň 1])","v":0},{"$f":"SUBTOTAL(109,Apríl[Nadčasy])","v":0},{"$f":"SUBTOTAL(109,Apríl[Týždeň 2])","v":0},{"$f":"SUBTOTAL(109,Apríl[[Nadčasy ]])","v":0},{"$f":"SUBTOTAL(109,Apríl[Týždeň 3])","v":0},{"$f":"SUBTOTAL(109,Apríl[[Nadčasy  ]])","v":0},{"$f":"SUBTOTAL(109,Apríl[Týždeň 4])","v":0},{"$f":"SUBTOTAL(109,Apríl[[Nadčasy   ]])","v":0},{"$f":"SUBTOTAL(109,Apríl[Týždeň 5])","v":0},{"$f":"SUBTOTAL(109,Apríl[[Nadčasy    ]])","v":0}]
[null,"Apr. spolu: normálny pracovný čas",{"$f":"SUM(Apríl[[#Totals],[Týždeň 1]],Apríl[[#Totals],[Týždeň 2]],Apríl[[#Totals],[Týždeň 3]],Apríl[[#Totals],[Týždeň 4]],Apríl[[#Totals],[Týždeň 5]])","v":0},"Apr. spolu: Nadčasy",null,{"$f":"SUM(Apríl[[#Totals],[Nadčasy]],Apríl[[#Totals],[Nadčasy ]],Apríl[[#Totals],[Nadčasy  ]],Apríl[[#Totals],[Nadčasy   ]],Apríl[[#Totals],[Nadčasy    ]])","v":0}]
[]
[null,"Máj","Týždeň 1","Nadčasy","Týždeň 2","Nadčasy ","Týždeň 3","Nadčasy  ","Týždeň 4","Nadčasy   ","Týždeň 5","Nadčasy    "]
[null,"Pondelok"]
[null,"Utorok"]
[null,"Streda"]
[null,"Štvrtok"]
[null,"Piatok"]
[null,"Sobota"]
[null,"Nedeľa"]
[null,"Celkový počet hodín za týždeň",{"$f":"SUBTOTAL(109,Máj[Týždeň 1])","v":0},{"$f":"SUBTOTAL(109,Máj[Nadčasy])","v":0},{"$f":"SUBTOTAL(109,Máj[Týždeň 2])","v":0},{"$f":"SUBTOTAL(109,Máj[[Nadčasy ]])","v":0},{"$f":"SUBTOTAL(109,Máj[Týždeň 3])","v":0},{"$f":"SUBTOTAL(109,Máj[[Nadčasy  ]])","v":0},{"$f":"SUBTOTAL(109,Máj[Týždeň 4])","v":0},{"$f":"SUBTOTAL(109,Máj[[Nadčasy   ]])","v":0},{"$f":"SUBTOTAL(109,Máj[Týždeň 5])","v":0},{"$f":"SUBTOTAL(109,Máj[[Nadčasy    ]])","v":0}]
[null,"Máj spolu: normálny pracovný čas",{"$f":"SUM(Máj[[#Totals],[Týždeň 1]],Máj[[#Totals],[Týždeň 2]],Máj[[#Totals],[Týždeň 3]],Máj[[#Totals],[Týždeň 4]],Máj[[#Totals],[Týždeň 5]])","v":0},"Máj spolu: Nadčasy",null,{"$f":"SUM(Máj[[#Totals],[Nadčasy]],Máj[[#Totals],[Nadčasy ]],Máj[[#Totals],[Nadčasy  ]],Máj[[#Totals],[Nadčasy   ]],Máj[[#Totals],[Nadčasy    ]])","v":0}]
[]
[null,"Jún","Týždeň 1","Nadčasy","Týždeň 2","Nadčasy ","Týždeň 3","Nadčasy  ","Týždeň 4","Nadčasy   ","Týždeň 5","Nadčasy    "]
[null,"Pondelok"]
[null,"Utorok"]
[null,"Streda"]
[null,"Štvrtok"]
[null,"Piatok"]
[null,"Sobota"]
[null,"Nedeľa"]
[null,"Celkový počet hodín za týždeň",{"$f":"SUBTOTAL(109,Jún[Týždeň 1])","v":0},{"$f":"SUBTOTAL(109,Jún[Nadčasy])","v":0},{"$f":"SUBTOTAL(109,Jún[Týždeň 2])","v":0},{"$f":"SUBTOTAL(109,Jún[[Nadčasy ]])","v":0},{"$f":"SUBTOTAL(109,Jún[Týždeň 3])","v":0},{"$f":"SUBTOTAL(109,Jún[[Nadčasy  ]])","v":0},{"$f":"SUBTOTAL(109,Jún[Týždeň 4])","v":0},{"$f":"SUBTOTAL(109,Jún[[Nadčasy   ]])","v":0},{"$f":"SUBTOTAL(109,Jún[Týždeň 5])","v":0},{"$f":"SUBTOTAL(109,Jún[[Nadčasy    ]])","v":0}]
[null,"Jún spolu: normálny pracovný čas",{"$f":"SUM(Jún[[#Totals],[Týždeň 1]],Jún[[#Totals],[Týždeň 2]],Jún[[#Totals],[Týždeň 3]],Jún[[#Totals],[Týždeň 4]],Jún[[#Totals],[Týždeň 5]])","v":0},"Jún spolu: Nadčasy",null,{"$f":"SUM(Jún[[#Totals],[Nadčasy]],Jún[[#Totals],[Nadčasy ]],Jún[[#Totals],[Nadčasy  ]],Jún[[#Totals],[Nadčasy   ]],Jún[[#Totals],[Nadčasy    ]])","v":0}]
[]
[null,"Júl, august, september      Časový výkaz zamestnanca: denný, týždenný, mesačný, ročný"]
[null,"Júl","Týždeň 1","Nadčasy","Týždeň 2","Nadčasy ","Týždeň 3","Nadčasy  ","Týždeň 4","Nadčasy   ","Týždeň 5","Nadčasy    "]
[null,"Pondelok"]
[null,"Utorok"]
[null,"Streda"]
[null,"Štvrtok"]
[null,"Piatok"]
[null,"Sobota"]
[null,"Nedeľa"]
[null,"Celkový počet hodín za týždeň",{"$f":"SUBTOTAL(109,Júl[Týždeň 1])","v":0},{"$f":"SUBTOTAL(109,Júl[Nadčasy])","v":0},{"$f":"SUBTOTAL(109,Júl[Týždeň 2])","v":0},{"$f":"SUBTOTAL(109,Júl[[Nadčasy ]])","v":0},{"$f":"SUBTOTAL(109,Júl[Týždeň 3])","v":0},{"$f":"SUBTOTAL(109,Júl[[Nadčasy  ]])","v":0},{"$f":"SUBTOTAL(109,Júl[Týždeň 4])","v":0},{"$f":"SUBTOTAL(109,Júl[[Nadčasy   ]])","v":0},{"$f":"SUBTOTAL(109,Júl[Týždeň 5])","v":0},{"$f":"SUBTOTAL(109,Júl[[Nadčasy    ]])","v":0}]
[null,"Júl spolu: normálny pracovný čas",{"$f":"SUM(Júl[[#Totals],[Týždeň 1]],Júl[[#Totals],[Týždeň 2]],Júl[[#Totals],[Týždeň 3]],Júl[[#Totals],[Týždeň 4]],Júl[[#Totals],[Týždeň 5]])","v":0},"Júl spolu: Nadčasy",null,{"$f":"SUM(Júl[[#Totals],[Nadčasy]],Júl[[#Totals],[Nadčasy ]],Júl[[#Totals],[Nadčasy  ]],Júl[[#Totals],[Nadčasy   ]],Júl[[#Totals],[Nadčasy    ]])","v":0}]
[]
[null,"August","Týždeň 1","Nadčasy","Týždeň 2","Nadčasy ","Týždeň 3","Nadčasy  ","Týždeň 4","Nadčasy   ","Týždeň 5","Nadčasy    "]
[null,"Pondelok"]
[null,"Utorok"]
[null,"Streda"]
[null,"Štvrtok"]
[null,"Piatok"]
[null,"Sobota"]
[null,"Nedeľa"]
[null,"Celkový počet hodín za týždeň",{"$f":"SUBTOTAL(109,August[Týždeň 1])","v":0},{"$f":"SUBTOTAL(109,August[Nadčasy])","v":0},{"$f":"SUBTOTAL(109,August[Týždeň 2])","v":0},{"$f":"SUBTOTAL(109,August[[Nadčasy ]])","v":0},{"$f":"SUBTOTAL(109,August[Týždeň 3])","v":0},{"$f":"SUBTOTAL(109,August[[Nadčasy  ]])","v":0},{"$f":"SUBTOTAL(109,August[Týždeň 4])","v":0},{"$f":"SUBTOTAL(109,August[[Nadčasy   ]])","v":0},{"$f":"SUBTOTAL(109,August[Týždeň 5])","v":0},{"$f":"SUBTOTAL(109,August[[Nadčasy    ]])","v":0}]
[null,"Aug. spolu: normálny pracovný čas",{"$f":"SUM(August[[#Totals],[Týždeň 1]],August[[#Totals],[Týždeň 2]],August[[#Totals],[Týždeň 3]],August[[#Totals],[Týždeň 4]],August[[#Totals],[Týždeň 5]])","v":0},"Aug. spolu: Nadčasy",null,{"$f":"SUM(August[[#Totals],[Nadčasy]],August[[#Totals],[Nadčasy ]],August[[#Totals],[Nadčasy  ]],August[[#Totals],[Nadčasy   ]],August[[#Totals],[Nadčasy    ]])","v":0}]
[]
[null,"September","Týždeň 1","Nadčasy","Týždeň 2","Nadčasy ","Týždeň 3","Nadčasy  ","Týždeň 4","Nadčasy   ","Týždeň 5","Nadčasy    "]
[null,"Pondelok"]
[null,"Utorok"]
[null,"Streda"]
[null,"Štvrtok"]
[null,"Piatok"]
[null,"Sobota"]
[null,"Nedeľa"]
[null,"Celkový počet hodín za týždeň",{"$f":"SUBTOTAL(109,September[Týždeň 1])","v":0},{"$f":"SUBTOTAL(109,September[Nadčasy])","v":0},{"$f":"SUBTOTAL(109,September[Týždeň 2])","v":0},{"$f":"SUBTOTAL(109,September[[Nadčasy ]])","v":0},{"$f":"SUBTOTAL(109,September[Týždeň 3])","v":0},{"$f":"SUBTOTAL(109,September[[Nadčasy  ]])","v":0},{"$f":"SUBTOTAL(109,September[Týždeň 4])","v":0},{"$f":"SUBTOTAL(109,September[[Nadčasy   ]])","v":0},{"$f":"SUBTOTAL(109,September[Týždeň 5])","v":0},{"$f":"SUBTOTAL(109,September[[Nadčasy    ]])","v":0}]
[null,"Sept. spolu: normálny pracovný čas",{"$f":"SUM(September[[#Totals],[Týždeň 1]],September[[#Totals],[Týždeň 2]],September[[#Totals],[Týždeň 3]],September[[#Totals],[Týždeň 4]],September[[#Totals],[Týždeň 5]])","v":0},"Sept. spolu: Nadčasy",null,{"$f":"SUM(September[[#Totals],[Nadčasy]],September[[#Totals],[Nadčasy ]],September[[#Totals],[Nadčasy  ]],September[[#Totals],[Nadčasy   ]],September[[#Totals],[Nadčasy    ]])","v":0}]
[]
[null,"Október, november, december      Časový výkaz zamestnanca: denný, týždenný, mesačný, ročný"]
[null,"Október","Týždeň 1","Nadčasy","Týždeň 2","Nadčasy ","Týždeň 3","Nadčasy  ","Týždeň 4","Nadčasy   ","Týždeň 5","Nadčasy    "]
[null,"Pondelok"]
[null,"Utorok"]
[null,"Streda"]
[null,"Štvrtok"]
[null,"Piatok"]
[null,"Sobota"]
[null,"Nedeľa"]
[null,"Celkový počet hodín za týždeň",{"$f":"SUBTOTAL(109,Október[Týždeň 1])","v":0},{"$f":"SUBTOTAL(109,Október[Nadčasy])","v":0},{"$f":"SUBTOTAL(109,Október[Týždeň 2])","v":0},{"$f":"SUBTOTAL(109,Október[[Nadčasy ]])","v":0},{"$f":"SUBTOTAL(109,Október[Týždeň 3])","v":0},{"$f":"SUBTOTAL(109,Október[[Nadčasy  ]])","v":0},{"$f":"SUBTOTAL(109,Október[Týždeň 4])","v":0},{"$f":"SUBTOTAL(109,Október[[Nadčasy   ]])","v":0},{"$f":"SUBTOTAL(109,Október[Týždeň 5])","v":0},{"$f":"SUBTOTAL(109,Október[[Nadčasy    ]])","v":0}]
[null,"Okt. spolu: normálny pracovný čas",{"$f":"SUM(Október[[#Totals],[Týždeň 1]],Október[[#Totals],[Týždeň 2]],Október[[#Totals],[Týždeň 3]],Október[[#Totals],[Týždeň 4]],Október[[#Totals],[Týždeň 5]])","v":0},"Okt. spolu: Nadčasy",null,{"$f":"SUM(Október[[#Totals],[Nadčasy]],Október[[#Totals],[Nadčasy ]],Október[[#Totals],[Nadčasy  ]],Október[[#Totals],[Nadčasy   ]],Október[[#Totals],[Nadčasy    ]])","v":0}]
[]
[null,"November","Týždeň 1","Nadčasy","Týždeň 2","Nadčasy ","Týždeň 3","Nadčasy  ","Týždeň 4","Nadčasy   ","Týždeň 5","Nadčasy    "]
[null,"Pondelok"]
[null,"Utorok"]
[null,"Streda"]
[null,"Štvrtok"]
[null,"Piatok"]
[null,"Sobota"]
[null,"Nedeľa"]
[null,"Celkový počet hodín za týždeň",{"$f":"SUBTOTAL(109,November[Týždeň 1])","v":0},{"$f":"SUBTOTAL(109,November[Nadčasy])","v":0},{"$f":"SUBTOTAL(109,November[Týždeň 2])","v":0},{"$f":"SUBTOTAL(109,November[[Nadčasy ]])","v":0},{"$f":"SUBTOTAL(109,November[Týždeň 3])","v":0},{"$f":"SUBTOTAL(109,November[[Nadčasy  ]])","v":0},{"$f":"SUBTOTAL(109,November[Týždeň 4])","v":0},{"$f":"SUBTOTAL(109,November[[Nadčasy   ]])","v":0},{"$f":"SUBTOTAL(109,November[Týždeň 5])","v":0},{"$f":"SUBTOTAL(109,November[[Nadčasy    ]])","v":0}]
[null,"Nov. spolu: normálny pracovný čas",{"$f":"SUM(November[[#Totals],[Týždeň 1]],November[[#Totals],[Týždeň 2]],November[[#Totals],[Týždeň 3]],November[[#Totals],[Týždeň 4]],November[[#Totals],[Týždeň 5]])","v":0},"Nov. spolu: Nadčasy",null,{"$f":"SUM(November[[#Totals],[Nadčasy]],November[[#Totals],[Nadčasy ]],November[[#Totals],[Nadčasy  ]],November[[#Totals],[Nadčasy   ]],November[[#Totals],[Nadčasy    ]])","v":0}]
[]
[null,"December","Týždeň 1","Nadčasy","Týždeň 2","Nadčasy ","Týždeň 3","Nadčasy  ","Týždeň 4","Nadčasy   ","Týždeň 5","Nadčasy    "]
[null,"Pondelok"]
[null,"Utorok"]
[null,"Streda"]
[null,"Štvrtok"]
[null,"Piatok"]
[null,"Sobota"]
[null,"Nedeľa"]
[null,"Celkový počet hodín za týždeň",{"$f":"SUBTOTAL(109,December[Týždeň 1])","v":0},{"$f":"SUBTOTAL(109,December[Nadčasy])","v":0},{"$f":"SUBTOTAL(109,December[Týždeň 2])","v":0},{"$f":"SUBTOTAL(109,December[[Nadčasy ]])","v":0},{"$f":"SUBTOTAL(109,December[Týždeň 3])","v":0},{"$f":"SUBTOTAL(109,December[[Nadčasy  ]])","v":0},{"$f":"SUBTOTAL(109,December[Týždeň 4])","v":0},{"$f":"SUBTOTAL(109,December[[Nadčasy   ]])","v":0},{"$f":"SUBTOTAL(109,December[Týždeň 5])","v":0},{"$f":"SUBTOTAL(109,December[[Nadčasy    ]])","v":0}]
[null,"Dec. spolu: normálny pracovný čas",{"$f":"SUM(December[[#Totals],[Týždeň 1]],December[[#Totals],[Týždeň 2]],December[[#Totals],[Týždeň 3]],December[[#Totals],[Týždeň 4]],December[[#Totals],[Týždeň 5]])","v":0},"Dec. spolu: Nadčasy",null,{"$f":"SUM(December[[#Totals],[Nadčasy]],December[[#Totals],[Nadčasy ]],December[[#Totals],[Nadčasy  ]],December[[#Totals],[Nadčasy   ]],December[[#Totals],[Nadčasy    ]])","v":0}]